[Event "Krakow Championship-A 2022"]
[Site "Krakow"]
[Date "2022.06.26"]
[Round "3.15"]
[White "Lye, Lik Zang"]
[Black "Michalicka, Milan"]
[Result "1-0"]
[ECO "E73"]
[WhiteElo "2358"]
[BlackElo "2222"]
[Annotator "TA"]
[PlyCount "75"]
[EventDate "2022.06.25"]
[EventType "swiss"]
[EventCountry "POL"]
[SourceTitle "playchess.com"]
[Source "ChessBase"]
[SourceQuality "1"]
[TimeControl "40/5400+30:1800+30"]

{[%evp 13,75,33,54,42,43,44,43,29,79,86,78,72,83,73,93,94,103,93,91,90,90,90,87,85,76,63,60,75,50,70,137,37,38,37,41,38,33,43,122,87,97,59,103,77,45,43,425,410,397,406,404,375,347,27,43,54,1700,1634,1466,1352,29986,29987,29997,29998]} 1. d4 {[%emt 0:00:20]} Nf6 {[%emt 0:00:08]} 2. c4 {[%emt 0:00:26]} g6 {[%emt 0:00:10]} 3. Nc3 {[%emt 0:00:08]} Bg7 {[%emt 0:00:10]} 4. e4 {[%emt 0:00:07]} d6 {[%emt 0:00:11]} 5. Be2 {[%emt 0:00:13]} O-O {[%emt 0:00:16]} 6. Be3 {[%emt 0:00:31]} c5 {[%emt 0:01:33]} 7. d5 {[%emt 0:01:40]} e6 {[%emt 0:01:09]} 8. Nf3 {[%emt 0:00:48] E73: King's Indian: Averbakh Variation without 6...c5.} exd5 {[%emt 0:00:24]} 9. cxd5 {[%emt 0:00:35]} Re8 {[%emt 0:02:29]} 10. Nd2 {[%emt 0:01:18] White is slightly better.} a6 {[%emt 0:03:15]} (10... Na6 $11) 11. a4 $1 $16 {[%emt 0:01:39]} Nbd7 {[%emt 0:01:13]} 12. O-O {[%emt 0:01:58]} Rb8 {[%emt 0:03:12]} 13. Qc2 {[%emt 0:05:17]} Qc7 {[%emt 0:11:55]} 14. a5 {[%emt 0:06:36]} Ne5 {[%emt 0:05:54]} 15. h3 {[%emt 0:04:54] [#] Against Nfg4} h6 $146 {[%emt 0:01:12]} ({Predecessor:} 15... b5 16. axb6 Rxb6 17. f4 Ned7 18. Nc4 Rb4 19. Bf2 Nb6 20. Nd2 c4 21. Bd4 Nxe4 22. Bxg7 Qc5+ {0-1 (24) Pitre,R-Zendrowski,J London,Canada 1991}) 16. f4 {[%emt 0:13:31]} Ned7 {[%emt 0:00:19]} 17. e5 {[%emt 0:11:53]} dxe5 {[%emt 0:01:12]} 18. f5 $1 {[%emt 0:00:53]} g5 {[%emt 0:02:11]} 19. Nde4 {[%emt 0:04:14]} b5 {[%emt 0:04:22]} 20. axb6 $1 {[%emt 0:08:33]} Rxb6 {[%emt 0:03:16]} 21. Bc4 {[%emt 0:07:02]} Bf8 {[%emt 0:04:15]} (21... Nxe4 $14 22. Nxe4 Nf6) 22. Qd2 {[%emt 0:06:29] 0x0.00207c5b2845dp-1022s more active pieces.} ({White should play} 22. h4 $16) 22... Nxe4 $14 {[%emt 0:12:11]} 23. Nxe4 {[%emt 0:00:28][%cal Oe3g5] Hoping for Bxg5!} Nf6 {[%emt 0:00:18]} 24. Qd3 {[%emt 0:08:17]} ({Don't play} 24. Nxf6+ Rxf6 25. Ra3 Qd8 $11) 24... Nxe4 {[%emt 0:11:25]} 25. Qxe4 {[%emt 0:00:16] aiming for f6.} Rf6 {[%emt 0:02:00]} ({Black should try} 25... Qd8 $1 $14) 26. Ra3 {[%emt 0:06:21]} Qd7 {[%emt 0:02:25][%cal Rf6f5]} 27. g4 {[%emt 0:03:07]} Bb7 {[%emt 0:03:27]} 28. h4 {[%emt 0:01:32]} Rd6 {[%emt 0:01:39][%cal Rb7d5]} 29. hxg5 {[%emt 0:01:46] Black must now prevent Rd3.} ({Don't blunder} 29. Bxc5 $2 Rxd5 30. Bxf8 Rd2 $19) 29... hxg5 $2 {[%emt 0:01:13][%mdl 8192]} ({Better is} 29... Bxd5 $14 30. Bxd5 Rxd5) 30. f6 $1 $18 {[%emt 0:03:47] White wants to mate with Bd3.} Bxd5 {[%emt 0:01:19]} 31. Bxd5 {[%emt 0:00:09]} Rxd5 {[%emt 0:00:13] [#]} 32. Rf5 $1 {[%emt 0:00:42]} Bh6 {[%emt 0:01:51]} 33. Bf2 $2 {[%emt 0:00:53]} ({White has to play} 33. Bxg5 $18 Rd4 34. Qg2) 33... Rd1+ {[%emt 0:04:01]} 34. Kg2 {[%emt 0:00:27][%mdl 1024] Intending Rh3 and mate. White has compensation.} Qb5 $2 {[%emt 0:01:07][%mdl 8192]} (34... Rd4 $14 35. Bxd4 exd4) 35. Rh3 {[%emt 0:00:26]} Qf1+ {[%emt 0:00:29]} 36. Kh2 {[%emt 0:00:19][%cal Of5g5] Threatening mate with Rxg5+!} Rd2 {[%emt 0:00:25] [#]} 37. Qe3 $1 {[%emt 0:00:38]} Rd1 {[%emt 0:02:00] [#]} 38. Qxg5+ $3 {[%emt 0:00:39][%mdl 576] Back Rank.  Weighted Error Value: White=0.24 (precise) /Black=0.61} 1-0

[Event "Krakow Championship-A 2022"]
[Site "Krakow"]
[Date "2022.06.26"]
[Round "3.16"]
[White "Balaji Sekar"]
[Black "Goroshkov, Maksym"]
[Result "1-0"]
[ECO "C96"]
[WhiteElo "1189"]
[BlackElo "2226"]
[Annotator "RC"]
[PlyCount "149"]
[EventDate "2022.06.25"]
[EventType "swiss"]
[EventCountry "POL"]
[SourceTitle "playchess.com"]
[Source "ChessBase"]
[SourceQuality "1"]
[TimeControl "40/5400+30:1800+30"]

1. e4 {[%emt 0:00:03]} e5 {[%emt 0:00:15]} 2. Nf3 {[%emt 0:00:08]} Nc6 {[%emt 0:00:04]} 3. Bb5 {[%emt 0:00:07]} a6 {[%emt 0:00:21]} 4. Ba4 {[%emt 0:00:07]} Nf6 {[%emt 0:00:05]} 5. O-O {[%emt 0:00:05]} Be7 {[%emt 0:00:02]} 6. Re1 {[%emt 0:00:17]} b5 {[%emt 0:00:04]} 7. Bb3 {[%emt 0:00:04]} O-O {[%emt 0:00:03]} 8. h3 {[%emt 0:00:11]} d6 {[%emt 0:02:51]} 9. c3 {[%emt 0:00:03]} Na5 {[%emt 0:00:07]} 10. Bc2 {[%emt 0:00:04]} c5 {[%emt 0:00:02]} 11. d4 {[%emt 0:00:05]} Nc6 {[%emt 0:00:07]} 12. d5 {[%emt 0:05:04]} Nb8 {[%emt 0:00:15]} 13. a4 {[%emt 0:02:13]} Bb7 {[%emt 0:00:23]} 14. Na3 {[%emt 0:07:05]} Nbd7 {[%emt 0:04:08]} 15. Be3 {[%emt 0:00:45]} bxa4 {[%emt 0:00:40]} 16. Nc4 {[%emt 0:02:01]} Nb6 {[%emt 0:02:02]} 17. Nxb6 {[%emt 0:08:16]} Qxb6 {[%emt 0:00:10]} 18. Nd2 {[%emt 0:00:27]} Qd8 {[%emt 0:03:49]} 19. Rxa4 {[%emt 0:09:35]} Ne8 {[%emt 0:04:13]} 20. Nc4 {[%emt 0:00:43]} Rb8 {[%emt 0:01:03]} 21. Qd3 {[%emt 0:13:17]} Bc8 {[%emt 0:03:13]} 22. Ra2 {[%emt 0:01:29]} f5 {[%emt 0:05:27]} 23. exf5 {[%emt 0:01:03]} Bxf5 {[%emt 0:00:20]} 24. Qd1 {[%emt 0:00:20]} Bd7 {[%emt 0:02:52]} 25. Na5 {[%emt 0:03:04]} Qc7 {[%emt 0:05:46]} 26. Bd3 {[%emt 0:04:44]} Qc8 {[%emt 0:04:01]} 27. Qe2 {[%emt 0:00:50]} Nc7 {[%emt 0:00:59]} 28. Qh5 {[%emt 0:02:26]} g6 {[%emt 0:00:22]} 29. Qd1 {[%emt 0:09:16]} Rf7 {[%emt 0:02:22]} 30. Bc4 {[%emt 0:00:27]} Kh8 {[%emt 0:01:38]} 31. Bxc5 {[%emt 0:01:53]} Rf4 {[%emt 0:14:37]} 32. Be3 {[%emt 0:01:15]} Rh4 {[%emt 0:00:01]} 33. Bf1 {[%emt 0:00:44]} Nxd5 {[%emt 0:00:32]} 34. Bxa6 {[%emt 0:10:49]} Nxe3 {[%emt 0:02:08]} 35. Bxc8 {[%emt 0:00:07]} Nxd1 {[%emt 0:00:04]} 36. Bxd7 {[%emt 0:00:07]} Rxb2 {[%emt 0:00:08]} 37. Rxb2 {[%emt 0:02:58]} Nxb2 {[%emt 0:00:09]} 38. Nc6 {[%emt 0:01:43]} Bf8 {[%emt 0:04:49]} 39. Bg4 {[%emt 0:00:16]} Na4 {[%emt 0:01:27]} 40. Re3 {[%emt 0:02:43]} Nc5 {[%emt 0:01:09]} 41. g3 {[%emt 0:32:02]} Rh6 {[%emt 0:31:16]} 42. h4 {[%emt 0:00:13]} g5 {[%emt 0:00:42]} 43. hxg5 {[%emt 0:01:37]} Rg6 {[%emt 0:00:08]} 44. f4 {[%emt 0:01:40]} Rg7 {[%emt 0:00:57]} 45. Kg2 {[%emt 0:07:45]} h6 {[%emt 0:00:40]} 46. fxe5 {[%emt 0:01:09]} Rxg5 {[%emt 0:00:07]} 47. Be2 {[%emt 0:00:00]} dxe5 {[%emt 0:00:00]} 48. Nxe5 {[%emt 0:00:00]} Kg7 {[%emt 0:00:00]} 49. Nf3 {[%emt 0:00:00]} Rg4 {[%emt 0:00:00]} 50. Nd4 {[%emt 0:00:00]} Re4 {[%emt 0:00:00]} 51. Rf3 {[%emt 0:00:00]} Be7 {[%emt 0:00:00]} 52. Nf5+ {[%emt 0:00:00]} Kh8 {[%emt 0:00:00]} 53. Bd3 {[%emt 0:00:00]} Nxd3 {[%emt 0:00:00]} 54. Rxd3 {[%emt 0:00:00]} Bf6 {[%emt 0:00:00]} 55. Nd6 {[%emt 0:00:00]} Re2+ {[%emt 0:00:00]} 56. Kf3 {[%emt 0:00:00]} Rc2 {[%emt 0:00:00]} 57. Ne4 {[%emt 0:00:00]} Bg7 {[%emt 0:00:00]} 58. Kg4 {[%emt 0:00:00]} Kh7 {[%emt 0:00:00]} 59. Kf5 {[%emt 0:00:00]} h5 {[%emt 0:00:00]} 60. Ng5+ {[%emt 0:00:00]} Kg8 {[%emt 0:00:00]} 61. Rd8+ {[%emt 0:00:00]} Bf8 {[%emt 0:00:00]} 62. Ne6 {[%emt 0:00:00]} Rxc3 {[%emt 0:00:00]} 63. Rxf8+ {[%emt 0:00:00]} Kh7 {[%emt 0:00:00]} 64. Rf7+ {[%emt 0:00:00]} Kh6 {[%emt 0:00:00]} 65. Rf6+ {[%emt 0:00:00]} Kh7 {[%emt 0:00:00]} 66. Ng5+ {[%emt 0:00:00]} Kg7 {[%emt 0:00:00]} 67. Rg6+ {[%emt 0:00:10]} Kh8 {[%emt 0:00:00]} 68. Ne4 {[%emt 0:00:29]} Rf3+ {[%emt 0:00:00]} 69. Kg5 {[%emt 0:00:24]} Re3 {[%emt 0:00:00]} 70. Kf4 {[%emt 0:00:20]} Ra3 {[%emt 0:00:00]} 71. Nf6 {[%emt 0:01:05]} Ra8 {[%emt 0:00:00]} 72. Kg5 {[%emt 0:00:10]} h4 {[%emt 0:00:00]} 73. Rh6+ {[%emt 0:00:04]} Kg7 {[%emt 0:00:00]} 74. Rh7+ {[%emt 0:00:01]} Kf8 {[%emt 0:00:00]} 75. Rh8+ {[%emt 0:00:03]} 1-0

[Event "Krakow Championship-A 2022"]
[Site "Krakow"]
[Date "2022.06.26"]
[Round "3.17"]
[White "Torkkola, Henri"]
[Black "Lim, Zhuo Ren"]
[Result "1/2-1/2"]
[ECO "A45"]
[WhiteElo "2197"]
[BlackElo "2290"]
[Annotator "TA"]
[PlyCount "66"]
[EventDate "2022.06.25"]
[EventType "swiss"]
[EventCountry "POL"]
[SourceTitle "playchess.com"]
[Source "ChessBase"]
[SourceQuality "1"]
[TimeControl "40/5400+30:1800+30"]

{[%evp 9,66,25,29,25,22,9,19,17,36,12,11,13,22,12,20,6,24,0,29,0,0,0,0,0,0,-4,-3,-6,-11,-6,0,0,0,-18,-9,-18,0,-6,0,0,0,0,0,0,0,0,19,0,0,0,0,0,0,0,0,0,0,0,0]} 1. d4 {[%emt 0:01:45]} Nf6 {[%emt 0:00:10]} 2. Bf4 {[%emt 0:00:07]} e6 {[%emt 0:00:35]} 3. e3 {[%emt 0:00:06]} c5 {[%emt 0:00:27]} 4. Nf3 {[%emt 0:00:11]} cxd4 {[%emt 0:00:51]} 5. exd4 {[%emt 0:00:06]} b6 {[%emt 0:00:05]} 6. c3 {[%emt 0:00:53] A46: 1 d4 Nf6 2 Nf3 e6: Torre, London and Colle Systems.} Be7 $1 {[%emt 0:00:59][%mdl 4] is currently scoring better than 6...Bb7.} 7. Nbd2 {[%emt 0:00:21]} O-O {[%emt 0:01:00]} 8. a4 {[%emt 0:00:19]} Ba6 {[%emt 0:00:26]} 9. Bxa6 {[%emt 0:01:12]} Nxa6 {[%emt 0:00:05][%cal Bb8a6,Ba6c7,Bc7d5][%mdl 32]} 10. Qe2 {[%emt 0:00:07]} Nc7 {[%emt 0:00:22]} 11. h3 {[%emt 0:00:51]} d6 {[%emt 0:00:22]} 12. O-O {[%emt 0:00:42]} a6 {[%emt 0:00:37] [#]} 13. Rfe1 $146 {[%emt 0:04:18]} ({Predecessor:} 13. Nc4 Nfd5 14. Bg3 Qd7 15. a5 b5 16. Ncd2 Rfc8 17. Ne1 Ne8 18. Nd3 Bd8 19. h4 {½-½ (27) Ajay,K (2315)-Vetokhin,S (2261) Arandjelovac 2021}) 13... h6 {[%emt 0:03:13]} 14. Ne4 {[%emt 0:03:16]} Nxe4 {[%emt 0:03:05] The position is equal.} 15. Qxe4 {[%emt 0:00:05]} Nd5 {[%emt 0:00:13]} 16. Bd2 {[%emt 0:07:11]} b5 {[%emt 0:00:28]} 17. axb5 {[%emt 0:00:10]} axb5 {[%emt 0:00:04]} 18. b3 {[%emt 0:00:21]} Qc7 {[%emt 0:00:59]} 19. Qd3 {[%emt 0:00:37]} Qb7 {[%emt 0:03:58]} 20. c4 {[%emt 0:03:28] [#] Rxa8 is the strong threat.} Nf6 {[%emt 0:02:05]} 21. Bc3 {[%emt 0:04:28]} Rxa1 {[%emt 0:01:21]} 22. Rxa1 {[%emt 0:00:06][%cal Be1a1,Ba1a5,Ba5b5,Bb5b7][%mdl 32]} Rc8 {[%emt 0:00:28]} 23. Nd2 {[%emt 0:01:20]} Nh5 {[%emt 0:02:45]} 24. g3 {[%emt 0:05:32]} Nf6 {[%emt 0:00:25]} (24... b4 $5 25. Bb2 Ra8 $11) 25. Ra5 {[%emt 0:04:14]} bxc4 {[%emt 0:00:44]} 26. bxc4 {[%emt 0:00:04]} Qc7 {[%emt 0:00:52]} 27. Rb5 {[%emt 0:05:46]} Qd7 {[%emt 0:06:08]} 28. Qb1 {[%emt 0:12:33]} Bf8 {[%emt 0:04:50]} 29. Kh2 {[%emt 0:04:36]} h5 {[%emt 0:02:27]} 30. Rb7 {[%emt 0:13:42]} Rc7 {[%emt 0:00:34]} 31. Rb8 {[%emt 0:00:07]} Rc8 {[%emt 0:01:21]} 32. Rb7 {[%emt 0:00:14]} Rc7 {[%emt 0:00:30]} 33. Rb8 {[%emt 0:00:08]} Rc8 {[%emt 0:00:07] An interesting draw.  Weighted Error Value: White=0.06 (flawless) /Black=0.05 (flawless)} 1/2-1/2

[Event "Krakow Championship-A 2022"]
[Site "Krakow"]
[Date "2022.06.26"]
[Round "3.18"]
[White "Marszalek, Maciej"]
[Black "Turski, Bartlomiej"]
[Result "1-0"]
[ECO "A22"]
[WhiteElo "2290"]
[BlackElo "2192"]
[Annotator "TA"]
[PlyCount "49"]
[EventDate "2022.06.25"]
[EventType "swiss"]
[EventCountry "POL"]
[SourceTitle "playchess.com"]
[Source "ChessBase"]
[SourceQuality "1"]
[TimeControl "40/5400+30:1800+30"]

{[%evp 10,49,22,10,14,15,15,16,14,8,43,42,45,41,56,26,38,2,27,21,1,-49,-54,-49,108,117,383,405,384,379,619,503,475,474,29989,29990,29995,29996,29996,29997,29997,29998]} 1. c4 {[%emt 0:00:04]} e5 {[%emt 0:00:10]} 2. Nc3 {[%emt 0:00:05]} Nf6 {[%emt 0:00:09][%cal Bg8f6,Bf6d5,Bd5b6][%mdl 32]} 3. g3 {[%emt 0:00:13]} d5 {[%emt 0:00:07]} 4. cxd5 {[%emt 0:00:28]} Nxd5 {[%emt 0:00:05]} 5. Bg2 {[%emt 0:00:08]} Nb6 {[%emt 0:00:05]} 6. e3 {[%emt 0:00:48]} Be7 {[%emt 0:00:59] A22: English Opening: 1...e5 2 Nc3 Nf6.} 7. Nge2 {[%emt 0:00:15][%cal Bg1e2,Be2f4,Bf4d3,Bd3c5][%mdl 32]} Nc6 {[%emt 0:00:35]} 8. O-O {[%emt 0:00:31]} O-O {[%emt 0:00:23] The position is equal.} 9. f4 {[%emt 0:00:27]} exf4 {[%emt 0:16:00]} (9... f6 {feels hotter.} 10. d4 Bg4 11. h3 Bh5) 10. Nxf4 {[%emt 0:00:24]} Ne5 {[%emt 0:01:00]} 11. d4 {[%emt 0:01:23][%cal Bd2d4,Bd4c5,Bc5b6][%mdl 32]} Ng6 {[%emt 0:01:00]} 12. Nd3 {[%emt 0:06:46]} c6 {[%emt 0:01:45] [#]} 13. Nc5 $146 {[%emt 0:09:10]} ({Predecessor:} 13. b3 Be6 14. Bb2 Qc8 15. Nf4 Nxf4 16. gxf4 Bh3 17. e4 Rd8 18. f5 Bxg2 19. Kxg2 {0-1 (43) Cmilyte,V (2524)-Kosteniuk,A (2501) Beijing 2012}) 13... Qc7 {[%emt 0:05:02]} 14. b4 {[%emt 0:06:50]} a5 {[%emt 0:06:41]} 15. b5 {[%emt 0:02:04]} ({White should try} 15. bxa5 $11 Rxa5 16. N3e4) 15... Bxc5 $15 {[%emt 0:03:30]} 16. dxc5 {[%emt 0:00:03]} cxb5 $2 {[%emt 0:00:41] [#]} (16... Nc4 $1 $15 {keeps the upper hand.}) 17. Qd4 $1 $36 {[%emt 0:05:28][%mdl 2048] White is really pushing. White is more active.} b4 $2 {[%emt 0:10:53][%mdl 8192] Black cannot hold the game after this.} (17... Nc4 $16 {was necessary.}) 18. Nb5 $18 {[%emt 0:15:24]} Qd7 {[%emt 0:00:21]} 19. cxb6 {[%emt 0:01:04]} ({Weaker is} 19. Nd6 Na4 $16) 19... Qxb5 {[%emt 0:00:29]} (19... Qxd4 20. Nxd4 Ra6) 20. Bb2 {[%emt 0:01:26][%csl Gb2][%cal Rd4g7]} f6 {[%emt 0:00:29]} 21. Bd5+ {[%emt 0:01:09]} Kh8 {[%emt 0:01:00] [#]} (21... Rf7 $18 22. Bxf7+ Kxf7) 22. Rxf6 $3 {[%emt 0:02:34][%mdl 512] White mates.} Rxf6 {[%emt 0:04:25] [#]} (22... Qe8 23. Rxf8+) 23. Qxf6 $1 {[%emt 0:00:09][%csl Gb2][%cal Rf6g7][%mdl 512]} Qd7 {[%emt 0:00:11] [#]} 24. Bf7 $1 {[%emt 0:00:40][%csl Gb2][%cal Rf6g7] This bishop pair is nice.} Ne5 {[%emt 0:01:37] [#]} 25. Bxe5 $1 {[%emt 0:00:36] Weighted Error Value: White=0.10 (very precise) /Black=0.69} 1-0

[Event "Krakow Championship-A 2022"]
[Site "Krakow"]
[Date "2022.06.26"]
[Round "3.19"]
[White "Shehzad, Shazil"]
[Black "Stevik, Patrik jun."]
[Result "0-1"]
[ECO "B06"]
[WhiteElo "2237"]
[BlackElo "2188"]
[Annotator "RC"]
[PlyCount "83"]
[EventDate "2022.06.25"]
[EventType "swiss"]
[EventCountry "POL"]
[SourceTitle "playchess.com"]
[Source "ChessBase"]
[SourceQuality "1"]
[TimeControl "40/5400+30:1800+30"]

1. e4 {[%emt 0:00:02]} g6 {[%emt 0:01:12]} 2. d4 {[%emt 0:00:33]} Bg7 {[%emt 0:00:24]} 3. Nc3 {[%emt 0:00:18]} d6 {[%emt 0:00:15]} 4. Be3 {[%emt 0:00:06]} a6 {[%emt 0:00:09]} 5. h4 {[%emt 0:00:12]} h5 {[%emt 0:02:31]} 6. Nh3 {[%emt 0:00:58]} b5 {[%emt 0:04:04]} 7. Ng5 {[%emt 0:00:11]} Bb7 {[%emt 0:00:43]} 8. Bd3 {[%emt 0:03:08]} Nd7 {[%emt 0:00:19]} 9. a4 {[%emt 0:05:01]} c6 {[%emt 0:05:09]} 10. g4 {[%emt 0:04:38]} hxg4 {[%emt 0:09:15]} 11. Qxg4 {[%emt 0:04:07]} e5 {[%emt 0:08:20]} 12. d5 {[%emt 0:15:19]} Ngf6 {[%emt 0:04:55]} 13. Qg2 {[%emt 0:01:13]} cxd5 {[%emt 0:04:16]} 14. Nxd5 {[%emt 0:01:28]} Nxd5 {[%emt 0:01:12]} 15. exd5 {[%emt 0:00:11]} Nf6 {[%emt 0:06:35]} 16. h5 {[%emt 0:06:55]} Bxd5 {[%emt 0:08:09]} 17. f3 {[%emt 0:02:45]} Rxh5 {[%emt 0:02:11]} 18. Rxh5 {[%emt 0:01:46]} Nxh5 {[%emt 0:00:47]} 19. O-O-O {[%emt 0:01:02]} Nf6 {[%emt 0:03:24]} 20. Qh2 {[%emt 0:16:14]} bxa4 {[%emt 0:03:15]} 21. Qh4 {[%emt 0:03:57]} Qa5 {[%emt 0:08:53]} 22. Bd2 {[%emt 0:09:12]} Qb6 {[%emt 0:03:09]} 23. Qxa4+ {[%emt 0:00:31]} Qc6 {[%emt 0:00:45]} 24. Qh4 {[%emt 0:03:27]} Rc8 {[%emt 0:03:12]} 25. Bc3 {[%emt 0:01:22]} Nh5 {[%emt 0:01:22]} 26. Ne4 {[%emt 0:01:22]} f5 {[%emt 0:05:07]} 27. Nd2 {[%emt 0:02:56]} Bf6 {[%emt 0:01:06]} 28. Qh2 {[%emt 0:01:28]} Nf4 {[%emt 0:00:55]} 29. Bf1 {[%emt 0:01:58]} Qa4 {[%emt 0:01:29]} 30. Nb3 {[%emt 0:02:07]} Bxb3 {[%emt 0:00:42]} 31. cxb3 {[%emt 0:02:54]} Rxc3+ {[%emt 0:01:41]} 32. Kb1 {[%emt 0:00:13]} Qxb3 {[%emt 0:05:06]} 33. Rxd6 {[%emt 0:00:14]} Rxf3 {[%emt 0:00:33]} 34. Bxa6 {[%emt 0:02:18]} Rh3 {[%emt 0:00:58]} 35. Qg1 {[%emt 0:00:22]} Be7 {[%emt 0:01:23]} 36. Rb6 {[%emt 0:00:27]} Qe3 {[%emt 0:00:58]} 37. Rb8+ {[%emt 0:00:18]} Kf7 {[%emt 0:00:33]} 38. Qf1 {[%emt 0:00:34]} Qe4+ {[%emt 0:00:45]} 39. Ka2 {[%emt 0:00:09]} Qa4+ {[%emt 0:00:13]} 40. Kb1 {[%emt 0:00:05]} Qe4+ {[%emt 0:00:20]} 41. Ka2 {[%emt 0:30:04]} Rh1 {[%emt 0:31:31]} 42. Qc4+ {[%emt 0:00:32]} 0-1

[Event "Krakow Championship-A 2022"]
[Site "Krakow"]
[Date "2022.06.26"]
[Round "3.20"]
[White "Easwaralingam, Adesh"]
[Black "Malicka, Maria"]
[Result "1/2-1/2"]
[ECO "B90"]
[WhiteElo "2116"]
[BlackElo "2377"]
[Annotator "TA"]
[PlyCount "105"]
[EventDate "2022.06.25"]
[EventType "swiss"]
[EventCountry "POL"]
[SourceTitle "playchess.com"]
[Source "ChessBase"]
[SourceQuality "1"]
[TimeControl "40/5400+30:1800+30"]

{[%evp 17,105,10,10,20,23,29,20,17,17,17,17,17,22,17,23,16,22,14,10,25,39,30,37,42,89,27,20,0,0,0,0,0,0,0,0,0,0,0,0,-5,-12,-15,0,-12,-10,-13,0,0,0,-11,0,-11,-13,-11,-12,-20,-16,-47,-29,-69,-53,-73,-71,-79,-70,-81,-78,-93,-30,-47,-47,-47,-47,-47,-47,-60,-51,-64,-64,-59,-46,-46,-46,-62,-61,-49,-39,-47,0,-16]} 1. e4 {[%emt 0:01:59]} c5 {[%emt 0:00:24]} 2. Nf3 {[%emt 0:00:11]} d6 {[%emt 0:00:03]} 3. d4 {[%emt 0:02:28]} cxd4 {[%emt 0:00:03]} 4. Nxd4 {[%emt 0:00:15]} Nf6 {[%emt 0:00:03]} 5. Nc3 {[%emt 0:00:14]} a6 {[%emt 0:00:01]} 6. Be3 {[%emt 0:01:20]} e5 {[%emt 0:00:04]} 7. Nb3 {[%emt 0:00:30]} Be6 {[%emt 0:00:04]} 8. f3 {[%emt 0:01:41]} h5 {[%emt 0:00:06]} 9. Qd2 {[%emt 0:02:11]} Nbd7 {[%emt 0:00:09]} 10. Nd5 {[%emt 0:00:55] B90: Sicilian Najdorf: Unusual White 6th moves, 6 Be3 Ng4 and 6 Be3 e5.} Bxd5 {[%emt 0:02:53]} 11. exd5 {[%emt 0:00:15]} g6 {[%emt 0:00:04]} 12. O-O-O {[%emt 0:01:03]} Nb6 {[%emt 0:01:22]} 13. Kb1 {[%emt 0:02:05]} Nbxd5 {[%emt 0:00:54]} 14. Bg5 {[%emt 0:00:19]} Be7 $1 {[%emt 0:00:21]} 15. g3 {[%emt 0:01:45] 15.g3 was played by the boomers.} (15. Bc4 {feels hotter.} Nb6 16. Na5 O-O 17. Bxf6 Bxf6 18. Qxd6 Nxc4 19. Nxc4 Rc8 20. Nb6) 15... Nb6 {[%emt 0:15:41]} 16. Bxf6 {[%emt 0:00:28]} Bxf6 {[%emt 0:00:03]} 17. Qxd6 {[%emt 0:00:09]} Qxd6 {[%emt 0:00:10]} (17... Na4 {is more complex.} 18. Bc4 Qxd6 19. Rxd6 Be7) 18. Rxd6 {[%emt 0:00:13]} Bd8 {[%emt 0:00:16]} 19. Rd1 {[%emt 0:06:27] [#]} Bc7 $146 {[%emt 0:02:07]} ({Predecessor:} 19... f5 20. Nc5 Rb8 21. Bg2 Bc7 22. a4 Rh7 23. g4 hxg4 24. fxg4 Nc4 25. Rhe1 Rxh2 26. Bd5 Nd2+ 27. Kc1 Ke7 28. gxf5 gxf5 29. Bxb7 {½-½ (29) Norchenko,K (2379)-Volkov,E (2370) ICCF email 2020}) 20. Nc5 {[%emt 0:02:29]} Rb8 {[%emt 0:03:42] [#]} (20... Ke7 $14 {was preferrable.}) 21. Be2 {[%emt 0:11:10] 0x0.0022fab31f7ddp-1022s more active pieces. The black rooks are badly placed.} (21. a4 $1 $16) 21... Ke7 {[%emt 0:03:04]} 22. c3 {[%emt 0:05:11]} f5 {[%emt 0:04:02]} 23. Rhe1 {[%emt 0:04:14]} Bd6 {[%emt 0:03:14]} 24. Bf1 {[%emt 0:00:10]} Rhd8 {[%emt 0:01:26]} 25. Nb3 {[%emt 0:02:33]} Bc7 {[%emt 0:10:03]} 26. Rxd8 {[%emt 0:02:35]} Rxd8 {[%emt 0:03:20]} 27. Nc5 {[%emt 0:09:30]} Rb8 {[%emt 0:01:35]} 28. Rd1 {[%emt 0:03:10]} Bd6 {[%emt 0:00:38]} 29. Nb3 {[%emt 0:02:04][%cal Bc5b3,Bb3a5,Ba5c4][%mdl 32]} Nd7 {[%emt 0:02:09]} 30. Na5 {[%emt 0:01:25]} Bc7 {[%emt 0:01:08]} 31. Nc4 {[%emt 0:00:06]} b5 {[%emt 0:01:20]} 32. Ne3 {[%emt 0:00:06] [#] Nd5+ is the strong threat.} Nf6 {[%emt 0:00:15]} 33. c4 {[%emt 0:07:12]} (33. a4 $5) 33... Ke6 {[%emt 0:06:19]} 34. Nd5 {[%emt 0:11:16]} Nxd5 {[%emt 0:00:17]} 35. Rxd5 $11 {[%emt 0:00:05][%mdl 4096] Endgame KRB-KRB} Bb6 {[%emt 0:01:54]} 36. Rd2 {[%emt 0:00:59]} Be3 {[%emt 0:05:03]} 37. Rg2 {[%emt 0:05:45]} b4 {[%emt 0:04:55]} 38. Bd3 {[%emt 0:03:55][%cal Oc4c5]} g5 {[%emt 0:07:12]} 39. Re2 {[%emt 0:03:43]} Bc5 {[%emt 0:01:45]} 40. h3 {[%emt 0:01:24]} Rd8 {[%emt 0:02:56]} 41. Kc2 {[%emt 0:34:19]} Rd4 {[%emt 0:30:41] Prevents g4.} 42. Rh2 {[%emt 0:01:52]} Bd6 {[%emt 0:07:40]} ({Black should try} 42... a5 $17) 43. c5 {[%emt 0:00:00]} Bxc5 {[%emt 0:00:00]} 44. Bxa6 {[%emt 0:00:00]} e4 {[%emt 0:00:00]} 45. fxe4 {[%emt 0:00:00]} Rxe4 {[%emt 0:00:00]} 46. Rd2 {[%emt 0:00:00]} g4 {[%emt 0:00:00]} 47. Bc8+ {[%emt 0:00:00]} Kf6 {[%emt 0:00:00]} 48. hxg4 {[%emt 0:00:00]} fxg4 {[%emt 0:00:00]} 49. Rd5 {[%emt 0:00:00]} Re5 {[%emt 0:00:00]} 50. Rd2 {[%emt 0:00:00]} Be7 {[%emt 0:00:10] And now ...Rc5+ would win.} 51. Bd7 {[%emt 0:00:00]} Re3 {[%emt 0:01:13]} 52. Be8 {[%emt 0:00:00]} Re5 {[%emt 0:02:04]} (52... Rxg3 $15 53. Bxh5 Kg5) 53. Rh2 {[%emt 0:00:00] Weighted Error Value: White=0.07 (flawless) /Black=0.06 (flawless)} 1/2-1/2